[Event "44th Chess Olympiad Open 2022"]
[Site "Chennai"]
[Date "2022.08.08"]
[Round "10.5"]
[White "Markus, Robert"]
[Black "Bok, Benjamin"]
[Result "1-0"]
[WhiteElo "2616"]
[BlackElo "2616"]
[Annotator "RC"]
[PlyCount "101"]
[EventDate "2022.??.??"]
[TimeControl "60"]

1. d4 {[%emt 0:00:04]} Nf6 {[%emt 0:00:06]} 2. Nf3 {[%emt 0:00:17]} d5 {
[%emt 0:00:05]} 3. c4 {[%emt 0:00:08]} e6 {[%emt 0:00:04]} 4. e3 {[%emt 0:00:
00]} b6 {[%emt 0:00:05]} 5. b3 {[%emt 0:00:32]} Bb7 {[%emt 0:00:10]} 6. Bd3 {
[%emt 0:00:09]} Nbd7 {[%emt 0:00:17]} 7. O-O {[%emt 0:00:09]} Bd6 {[%emt 0:00:
00]} 8. Nc3 {[%emt 0:00:23]} O-O {[%emt 0:04:08]} 9. Bb2 {[%emt 0:00:05]} a6 {
[%emt 0:07:47]} 10. a4 {[%emt 0:00:50]} c5 {[%emt 0:06:28]} 11. cxd5 {[%emt 0:
00:00]} exd5 {[%emt 0:06:49]} 12. Rc1 {[%emt 0:02:07]} Qe7 {[%emt 0:00:14]} 13.
Ne2 {[%emt 0:04:58]} Rfe8 {[%emt 0:04:21]} 14. Ng3 {[%emt 0:02:57]} g6 {
[%emt 0:01:55]} 15. Qe2 {[%emt 0:06:19]} Ne4 {[%emt 0:05:00]} 16. Rfd1 {
[%emt 0:02:39]} cxd4 {[%emt 0:08:59]} 17. Nxd4 {[%emt 0:04:11]} Be5 {[%emt 0:
00:00]} 18. Bxe4 {[%emt 0:14:21]} dxe4 {[%emt 0:02:10]} 19. Nc6 {[%emt 0:04:41]
} Bxc6 {[%emt 0:01:31]} 20. Rxc6 {[%emt 0:08:13]} Bxb2 {[%emt 0:08:16]} 21.
Qxb2 {[%emt 0:00:00]} Rad8 {[%emt 0:02:12]} 22. Rd4 {[%emt 0:13:25]} Nc5 {
[%emt 0:15:37]} 23. h3 {[%emt 0:14:48]} Qb7 {[%emt 0:07:55]} 24. Rdd6 {[%emt 0:
00:00]} Rxd6 {[%emt 0:02:03]} 25. Rxd6 {[%emt 0:00:00]} a5 {[%emt 0:00:34]} 26.
Qf6 {[%emt 0:11:41]} Nxb3 {[%emt 0:09:53]} 27. Rxb6 {[%emt 0:00:00]} Qd5 {
[%emt 0:00:11]} 28. Rb5 {[%emt 0:00:00]} Nc5 {[%emt 0:01:04]} 29. Kh2 {[%emt 0:
00:00]} Nd7 {[%emt 0:01:00]} 30. Qxg6+ {[%emt 0:00:00]} hxg6 {[%emt 0:00:09]}
31. Rxd5 {[%emt 0:00:00]} Nf6 {[%emt 0:00:50]} 32. Rxa5 {[%emt 0:00:00]} Rc8 {
[%emt 0:00:09]} 33. Re5 {[%emt 0:00:00]} Rc4 {[%emt 0:00:10]} 34. a5 {[%emt 0:
00:00]} Ra4 {[%emt 0:00:03]} 35. a6 {[%emt 0:00:00]} Kg7 {[%emt 0:00:35]} 36.
a7 {[%emt 0:00:00]} Rxa7 {[%emt 0:00:10]} 37. Nxe4 {[%emt 0:00:00]} Ng8 {
[%emt 0:01:00]} 38. g4 {[%emt 0:00:00]} f6 {[%emt 0:00:01]} 39. Re8 {[%emt 0:
00:00]} f5 {[%emt 0:00:55]} 40. gxf5 {[%emt 0:00:00]} gxf5 {[%emt 0:00:01]} 41.
Nd6 {[%emt 0:21:37]} f4 {[%emt 0:19:00]} 42. e4 {[%emt 0:00:00]} Nh6 {[%emt 0:
00:00]} 43. Re6 {[%emt 0:00:00]} Kh7 {[%emt 0:02:51]} 44. Kg2 {[%emt 0:00:00]}
Ra6 {[%emt 0:00:48]} 45. Nf7 {[%emt 0:00:00]} f3+ {[%emt 0:02:46]} 46. Kg3 {
[%emt 0:00:00]} Rxe6 {[%emt 0:00:17]} 47. Ng5+ {[%emt 0:00:00]} Kg6 {[%emt 0:
00:00]} 48. Nxe6 {[%emt 0:00:00]} Nf7 {[%emt 0:00:32]} 49. Kxf3 {[%emt 0:00:00]
} Kf6 {[%emt 0:00:07]} 50. Nc5 {[%emt 0:00:00]} Ne5+ {[%emt 0:00:48]} 51. Ke3 {
[%emt 0:00:00]} 1-0

[Event "44th Chess Olympiad Open 2022"]
[Site "Chennai"]
[Date "2022.08.08"]
[Round "10.5"]
[White "Warmerdam, Max"]
[Black "Perunovic, Milos"]
[Result "1-0"]
[WhiteElo "2610"]
[BlackElo "2539"]
[Annotator "RC"]
[PlyCount "79"]
[EventDate "2022.??.??"]
[TimeControl "60"]

1. c4 {[%emt 0:00:04]} c5 {[%emt 0:00:47]} 2. Nf3 {[%emt 0:00:07]} Nc6 {
[%emt 0:02:26]} 3. Nc3 {[%emt 0:00:07]} Nf6 {[%emt 0:01:28]} 4. d4 {[%emt 0:00:
00]} cxd4 {[%emt 0:00:08]} 5. Nxd4 {[%emt 0:00:05]} Qb6 {[%emt 0:05:41]} 6. e3
{[%emt 0:15:58]} g6 {[%emt 0:03:51]} 7. Be2 {[%emt 0:01:29]} Bg7 {[%emt 0:00:
00]} 8. O-O {[%emt 0:01:29]} O-O {[%emt 0:00:11]} 9. a3 {[%emt 0:08:13]} Qd8 {
[%emt 0:21:37]} 10. Qb3 {[%emt 0:07:44]} b6 {[%emt 0:02:23]} 11. Rd1 {[%emt 0:
00:00]} Bb7 {[%emt 0:02:48]} 12. Qa2 {[%emt 0:04:14]} Nxd4 {[%emt 0:10:40]} 13.
exd4 {[%emt 0:00:59]} d5 {[%emt 0:00:09]} 14. Bf3 {[%emt 0:01:13]} Qd7 {
[%emt 0:02:54]} 15. c5 {[%emt 0:04:32]} Ne4 {[%emt 0:11:23]} 16. Bxe4 {[%emt 0:
00:00]} dxe4 {[%emt 0:00:05]} 17. Be3 {[%emt 0:00:05]} e6 {[%emt 0:06:51]} 18.
Rac1 {[%emt 0:02:22]} Rfd8 {[%emt 0:05:33]} 19. b4 {[%emt 0:02:22]} Qe7 {
[%emt 0:02:45]} 20. Qc4 {[%emt 0:07:10]} Bd5 {[%emt 0:02:54]} 21. Nxd5 {
[%emt 0:04:11]} Rxd5 {[%emt 0:00:24]} 22. a4 {[%emt 0:07:27]} Rad8 {[%emt 0:00:
00]} 23. c6 {[%emt 0:00:00]} Qc7 {[%emt 0:00:10]} 24. g3 {[%emt 0:05:39]} h6 {
[%emt 0:13:50]} 25. Qc2 {[%emt 0:06:00]} f5 {[%emt 0:02:11]} 26. b5 {[%emt 0:
00:00]} g5 {[%emt 0:00:00]} 27. Bd2 {[%emt 0:02:01]} Bxd4 {[%emt 0:00:00]} 28.
Bc3 {[%emt 0:00:28]} Bc5 {[%emt 0:00:00]} 29. Qe2 {[%emt 0:00:13]} Qf7 {
[%emt 0:00:00]} 30. Kh1 {[%emt 0:00:19]} Kh7 {[%emt 0:00:00]} 31. Be5 {[%emt 0:
00:00]} Qe7 {[%emt 0:00:00]} 32. Qh5 {[%emt 0:00:49]} Qe8 {[%emt 0:00:00]} 33.
Qxe8 {[%emt 0:00:45]} Rxe8 {[%emt 0:00:00]} 34. Rxd5 {[%emt 0:00:22]} exd5 {
[%emt 0:00:00]} 35. Rxc5 {[%emt 0:00:15]} bxc5 {[%emt 0:00:00]} 36. a5 {
[%emt 0:00:03]} d4 {[%emt 0:00:16]} 37. b6 {[%emt 0:00:28]} e3 {[%emt 0:01:00]}
38. fxe3 {[%emt 0:00:09]} dxe3 {[%emt 0:00:28]} 39. b7 {[%emt 0:00:37]} e2 {
[%emt 0:00:29]} 40. Bc3 {[%emt 0:00:03]} 1-0

[Event "44th Chess Olympiad Open 2022"]
[Site "Chennai"]
[Date "2022.08.08"]
[Round "10.6"]
[White "Shirov, Alexei"]
[Black "Navara, David"]
[Result "1/2-1/2"]
[WhiteElo "2704"]
[BlackElo "2688"]
[Annotator "TA"]
[PlyCount "132"]
[EventDate "2022.??.??"]
[TimeControl "60"]

{[%evp 15,132,18,11,17,23,20,20,16,18,11,20,14,20,19,20,19,12,14,21,22,16,0,0,
0,0,0,10,12,26,14,24,22,48,50,46,46,46,50,61,61,61,57,49,53,77,21,23,15,56,47,
62,60,73,73,76,73,73,43,43,43,43,50,50,50,50,64,59,60,64,46,122,71,71,57,83,42,
42,42,42,42,42,42,42,42,42,42,42,42,42,42,42,42,50,0,0,0,0,0,0,0,0,0,0,0,0,0,0,
0,0,0,0,0,0,0,0,0,0,0,0]} 1. e4 {[%emt 0:00:04]} e5 {[%emt 0:00:03]} 2. Nf3 {
[%emt 0:00:05]} Nc6 {[%emt 0:00:04]} 3. Bb5 {[%emt 0:00:05]} Nf6 {[%emt 0:00:
00]} 4. O-O {[%emt 0:00:08][%cal Yh1f1,Yf1e1,Ye1e5]} Nxe4 {[%emt 0:00:00]} 5.
Re1 {[%emt 0:00:04]} Nd6 {[%emt 0:00:07]} 6. Nxe5 {[%emt 0:00:04]} Be7 {
[%emt 0:00:06]} 7. Bf1 {[%emt 0:00:05]} Nxe5 {[%emt 0:00:06]} 8. Rxe5 {[%emt 0:
00:04]} O-O {[%emt 0:00:08]} 9. Nc3 {[%emt 0:00:20] C67: Ruy Lopez: Berlin
Defence: 4 0-0 Nxe4.} Bf6 {[%emt 0:00:18]} 10. Re1 {[%emt 0:00:37]} Re8 {
[%emt 0:00:10]} 11. Nd5 {[%emt 0:03:12]} Rxe1 {[%emt 0:00:18]} 12. Qxe1 {
[%emt 0:02:22][%cal Yd2d4]} b6 {[%emt 0:00:08]} 13. d3 {[%emt 0:05:10]} Bb7 {
[%emt 0:00:22]} 14. Nxf6+ {[%emt 0:00:31]} Qxf6 {[%emt 0:00:06]} 15. Qe3 {
[%emt 0:00:24]} (15. Qc3 Qxc3 16. bxc3 Re8 17. c4 Bc6 18. Bf4 {½-½ (18)
Shirov,A (2662)-Navara,D (2697) Tornelo INT 2020}) 15... c5 {[%emt 0:01:35]}
16. Qf4 {[%emt 0:01:53]} Qxf4 {[%emt 0:04:03]} 17. Bxf4 {[%emt 0:00:12]} Nf5 {
[%emt 0:00:07]} 18. Re1 {[%emt 0:06:10]} f6 {[%emt 0:00:49]} 19. c3 {[%emt 0:
00:00]} Bd5 {[%emt 0:07:18]} 20. a3 {[%emt 0:10:49]} g5 {[%emt 0:01:01]} 21.
Bd2 {[%emt 0:00:08] [#]} a5 $146 {[%emt 0:01:18]} ({Predecessor:} 21... h5 22.
f3 Kf7 23. Kf2 a5 24. Be2 Bb3 25. h3 Rg8 26. g4 hxg4 27. hxg4 Ng7 {½-½ (41)
Caruana,F (2792)-So,W (2772) Chess.com INT 2022}) 22. Be2 {[%emt 0:10:25]} Re8
{[%emt 0:04:59]} 23. f4 {[%emt 0:03:30]} Nh4 {[%emt 0:02:23]} 24. Kf2 {[%emt 0:
00:00]} h6 {[%emt 0:18:03]} ({Less strong is} 24... Nxg2 25. Bf3 Nxe1 26. Bxd5+
Kg7 27. Bxe1 $16) ({Weaker is} 24... Bxg2 25. fxg5 Re5 26. gxf6 Rf5+ 27. Kg3
$16) 25. g3 {[%emt 0:06:27]} Nf5 {[%emt 0:00:11]} 26. g4 {[%emt 0:16:29]} Nd6 {
[%emt 0:12:28]} 27. c4 {[%emt 0:01:13]} Bc6 {[%emt 0:01:35]} 28. b4 {[%emt 0:
00:00]} axb4 {[%emt 0:00:22]} 29. axb4 {[%emt 0:00:11]} cxb4 {[%emt 0:01:15] 
[#]} 30. Bxb4 {[%emt 0:00:23]} (30. Rb1 $1 $16) 30... Nf7 $11 {[%emt 0:00:12]}
31. fxg5 {[%emt 0:17:34]} Nxg5 {[%emt 0:00:18]} 32. Bd2 {[%emt 0:04:22]} b5 {
[%emt 0:00:18]} 33. h4 {[%emt 0:00:28]} Ne6 {[%emt 0:02:09]} 34. cxb5 {[%emt 0:
00:00]} Bxb5 {[%emt 0:00:09]} 35. Rb1 {[%emt 0:00:09]} Kh7 {[%emt 0:07:44]} 36.
Rxb5 {[%emt 0:04:04]} (36. Bxh6 $5 Bxd3 37. Bxd3+ Kxh6 38. Rb5 $16) 36... Nd4 {
[%emt 0:00:11][%csl Yb5,Ye2] [#]} 37. Rd5 $1 {[%emt 0:00:04][%csl Yd4,Yd7]}
Rxe2+ {[%emt 0:00:08]} 38. Kg3 {[%emt 0:00:03]} Rxd2 {[%emt 0:02:45]} 39. Rxd7+
{[%emt 0:02:27]} Kg8 $1 {[%emt 0:00:07]} 40. Rxd4 $14 {[%emt 0:00:05] Endgame
KR-KR} Kf7 {[%emt 0:00:29]} 41. Kf4 {[%emt 0:34:05]} Rd1 {[%emt 0:44:13]} 42.
h5 {[%emt 0:02:03]} Ke6 {[%emt 0:04:26] [#] Prevents Rd7.} (42... Rf1+ $14 43.
Ke4 Re1+ 44. Kf5 Rf1+ 45. Rf4 Rd1) 43. Re4+ {[%emt 0:01:16]} (43. Rd8 $142 $1)
43... Kf7 $16 {[%emt 0:02:15]} 44. Ke3 {[%emt 0:00:00] Black must now prevent
d4.} Re1+ {[%emt 0:00:00]} 45. Kd4 {[%emt 0:00:00]} Rf1 {[%emt 0:00:00]} 46.
Kd5 {[%emt 0:00:00]} f5 {[%emt 0:00:00]} 47. gxf5 {[%emt 0:00:00]} Rxf5+ {
[%emt 0:00:00]} 48. Re5 {[%emt 0:00:00]} Rf4 {[%emt 0:00:00]} 49. d4 {[%emt 0:
00:00]} Rh4 {[%emt 0:00:04]} 50. Kc5 {[%emt 0:00:00] Hoping for d5.} Kf6 {
[%emt 0:00:07]} 51. Rd5 {[%emt 0:00:00]} Rh1 {[%emt 0:00:00]} 52. Kd6 {[%emt 0:
00:00]} Rd1 {[%emt 0:01:14]} 53. Kc6 {[%emt 0:00:00]} Rd2 {[%emt 0:05:28]} 54.
Rd8 {[%emt 0:00:19]} (54. Kc5 $14) 54... Rc2+ $11 {[%emt 0:00:06] The position
is equal.} 55. Kd6 {[%emt 0:02:22] Threatens to win with Rg8.} Kg5 {[%emt 0:00:
31]} 56. d5 {[%emt 0:00:13]} Kxh5 {[%emt 0:00:00]} 57. Rg8 {[%emt 0:00:05]} Kh4
{[%emt 0:01:11]} 58. Rg6 {[%emt 0:02:05]} h5 {[%emt 0:00:03][%cal Yh6h5,Yh5h4,
Yh4h3,Yh3h2]} 59. Ke5 {[%emt 0:00:55]} Rd2 {[%emt 0:03:38]} 60. d6 {[%emt 0:00:
11]} Kh3 $1 {[%emt 0:00:04]} 61. Ke6 {[%emt 0:01:36] d7 would kill now.} h4 {
[%emt 0:00:26]} 62. d7 {[%emt 0:00:24]} Kh2 $1 {[%emt 0:00:11]} 63. Rg5 {
[%emt 0:00:43]} Rxd7 {[%emt 0:01:08]} 64. Kxd7 {[%emt 0:00:05]} h3 $1 {[%emt 0:
00:05]} 65. Ke6 {[%emt 0:00:03] White threatens Ke5 and mate.} Kh1 {[%emt 0:00:
04]} 66. Kf5 {[%emt 0:00:13] White wants to mate with Kf4.} h2 {[%emt 0:00:03]
Weighted Error Value: White=0.06 (flawless) /Black=0.04 (flawless)} 1/2-1/2

[Event "44th Chess Olympiad Open 2022"]
[Site "Chennai"]
[Date "2022.08.08"]
[Round "10.6"]
[White "Anton Guijarro, David"]
[Black "Michalik, Peter"]
[Result "1/2-1/2"]
[WhiteElo "2667"]
[BlackElo "2559"]
[Annotator "RC"]
[PlyCount "61"]
[EventDate "2022.??.??"]
[TimeControl "60"]

1. d4 {[%emt 0:00:06]} Nf6 {[%emt 0:00:07]} 2. Nf3 {[%emt 0:00:20]} d5 {
[%emt 0:00:32]} 3. e3 {[%emt 0:00:27]} c5 {[%emt 0:01:13]} 4. Bb5+ {[%emt 0:00:
00]} Bd7 {[%emt 0:00:48]} 5. Be2 {[%emt 0:00:09]} Nc6 {[%emt 0:02:49]} 6. O-O {
[%emt 0:00:22]} e6 {[%emt 0:01:40]} 7. b3 {[%emt 0:00:38]} Bd6 {[%emt 0:00:55]}
8. Bb2 {[%emt 0:00:33]} O-O {[%emt 0:01:45]} 9. a3 {[%emt 0:04:38]} Re8 {
[%emt 0:03:13]} 10. dxc5 {[%emt 0:04:34]} Bxc5 {[%emt 0:00:06]} 11. b4 {
[%emt 0:00:28]} Bf8 {[%emt 0:04:26]} 12. c4 {[%emt 0:05:58]} dxc4 {[%emt 0:00:
00]} 13. Bxc4 {[%emt 0:00:32]} a6 {[%emt 0:01:15]} 14. Nbd2 {[%emt 0:11:00]} h6
{[%emt 0:06:32]} 15. Rc1 {[%emt 0:06:50]} Qe7 {[%emt 0:08:44]} 16. Nb3 {
[%emt 0:15:06]} Red8 {[%emt 0:00:28]} 17. Qe2 {[%emt 0:02:28]} e5 {[%emt 0:00:
00]} 18. e4 {[%emt 0:08:39]} Be6 {[%emt 0:06:42]} 19. Nc5 {[%emt 0:02:08]} Bxc4
{[%emt 0:00:14]} 20. Rxc4 {[%emt 0:00:21]} a5 {[%emt 0:07:19]} 21. b5 {[%emt 0:
00:00]} Nd4 {[%emt 0:00:07]} 22. Nxd4 {[%emt 0:02:42]} exd4 {[%emt 0:00:06]}
23. e5 {[%emt 0:03:19]} Nd5 {[%emt 0:07:25]} 24. Nd3 {[%emt 0:10:23]} Rac8 {
[%emt 0:00:50]} 25. Rxd4 {[%emt 0:07:01]} Nc3 {[%emt 0:00:21]} 26. Bxc3 {
[%emt 0:00:03]} Rxc3 {[%emt 0:00:07]} 27. Rxd8 {[%emt 0:00:11]} Qxd8 {[%emt 0:
00:00]} 28. Nf4 {[%emt 0:00:18]} Rxa3 {[%emt 0:08:09]} 29. e6 {[%emt 0:00:27]}
Qf6 {[%emt 0:00:12]} 30. g3 {[%emt 0:01:01]} fxe6 {[%emt 0:05:36]} 31. Nxe6 {
[%emt 0:01:04]} 1/2-1/2

[Event "44th Chess Olympiad Open 2022"]
[Site "Chennai"]
[Date "2022.08.08"]
[Round "10.6"]
[White "Nguyen, Thai Dai Van"]
[Black "Vallejo Pons, Francisco"]
[Result "1/2-1/2"]
[WhiteElo "2629"]
[BlackElo "2702"]
[Annotator "TA"]
[PlyCount "85"]
[EventDate "2022.??.??"]
[TimeControl "60"]

{[%evp 12,85,16,15,16,13,9,8,10,7,12,5,21,16,31,26,42,42,35,52,73,73,64,74,76,
68,68,70,68,67,88,82,87,87,97,68,68,68,68,68,68,68,68,68,68,0,56,43,68,68,75,
75,75,75,75,75,75,75,75,72,72,72,72,72,79,50,50,20,50,50,50,50,50,50,57,50]} 1.
d4 {[%emt 0:00:06]} d5 {[%emt 0:00:07]} 2. c4 {[%emt 0:00:14]} c6 {[%emt 0:00:
00]} 3. Nf3 {[%emt 0:00:23]} Nf6 {[%emt 0:00:10]} 4. Nc3 {[%emt 0:00:08]} dxc4
{[%emt 0:00:12]} 5. a4 {[%emt 0:00:10]} e6 {[%emt 0:00:15]} 6. e3 {[%emt 0:00:
00][%cal Ye2e3,Ye3d4]} c5 {[%emt 0:00:08]} 7. Bxc4 {[%emt 0:00:12]} Nc6 {
[%emt 0:00:24] D16: Slav Defence: 5 a4: Lines with 5...Bg4 and 5...Na6.} 8. Qe2
$5 {[%emt 0:08:31] Exploring less charted territory.} cxd4 {[%emt 0:02:12]} 9.
exd4 {[%emt 0:01:18]} Be7 {[%emt 0:02:05] The position is equal.} 10. O-O {
[%emt 0:00:11]} O-O {[%emt 0:00:09]} ({Don't play} 10... Nxd4 11. Nxd4 Qxd4 12.
Nb5 $16) 11. Rd1 {[%emt 0:02:07]} Nb4 {[%emt 0:02:01] Inhibits d5.} 12. Bg5 {
[%emt 0:09:37]} Bd7 {[%emt 0:12:29]} 13. d5 {[%emt 0:00:00]} exd5 {[%emt 0:09:
17]} 14. Nxd5 {[%emt 0:02:49]} Nbxd5 {[%emt 0:00:53]} ({Resist} 14... Nfxd5 15.
Bxe7 Nxe7 16. Ne5 $16) 15. Bxd5 {[%emt 0:00:10]} Nxd5 {[%emt 0:00:27]} 16. Rxd5
{[%emt 0:00:25]} Bxg5 {[%emt 0:00:33]} 17. Nxg5 {[%emt 0:00:06]} h6 {[%emt 0:
01:35]} 18. Qd2 {[%emt 0:01:23] Strongly threatening Nf3. White is much more
active. The black rooks are badly placed.} hxg5 {[%emt 0:11:24]} 19. Rxd7 {
[%emt 0:00:09]} Qf6 {[%emt 0:05:26]} 20. Rxb7 {[%emt 0:01:47] [#]} Rab8 $146 {
[%emt 0:04:28]} ({Predecessor:} 20... Rfd8 21. Qe3 Rd4 22. h3 Rad8 23. Rxa7 Rd3
24. Qe4 Qxb2 25. Re1 Rd1 26. Re7 Rxe1+ 27. Qxe1 {1-0 (60) Christiansen,J (2558)
-Solak,D (2602) Batumi 2019}) 21. Rxb8 {[%emt 0:04:38]} ({Much worse is} 21.
Rxa7 $6 Rxb2 22. Qe1 Rxf2 $1 $11) 21... Rxb8 $16 {[%emt 0:01:13] Endgame [#]
KQR-KQR} 22. Rb1 {[%emt 0:00:00]} Qc6 {[%emt 0:23:10]} 23. Qxg5 {[%emt 0:06:00]
} Qxa4 {[%emt 0:01:57]} 24. Qe5 {[%emt 0:07:43]} Qb5 {[%emt 0:01:39]} 25. Qd4 {
[%emt 0:00:54]} a5 {[%emt 0:00:00]} 26. h3 {[%emt 0:07:13]} Qb4 {[%emt 0:01:25]
} 27. Qe5 {[%emt 0:00:56]} Qb5 {[%emt 0:00:23]} 28. Qd4 {[%emt 0:02:13]} Qb4 {
[%emt 0:00:31]} 29. Qd5 {[%emt 0:04:07]} a4 {[%emt 0:03:57]} 30. Ra1 {[%emt 0:
01:03] Inhibits a3.} Qxb2 {[%emt 0:07:56]} 31. Rxa4 {[%emt 0:01:46]} Qb5 {
[%emt 0:00:36]} 32. Qd6 {[%emt 0:06:29]} Qxa4 {[%emt 0:01:30]} 33. Qxb8+ {
[%emt 0:00:06] KQ-KQ} Kh7 {[%emt 0:00:03]} 34. Qe5 {[%emt 0:00:53]} g6 {
[%emt 0:01:53]} 35. f4 {[%emt 0:00:00]} f5 {[%emt 0:02:14]} 36. Qe7+ {[%emt 0:
01:16]} Kg8 {[%emt 0:00:42]} 37. Qd6 {[%emt 0:01:51]} Kf7 {[%emt 0:00:27]} 38.
h4 {[%emt 0:00:21]} Qa7+ {[%emt 0:01:25]} 39. Kh2 {[%emt 0:00:17][%cal Yh4h5]
And now h5! would win.} Qf2 {[%emt 0:00:20]} 40. Qc7+ {[%emt 0:00:24] White is
slightly better.} Ke8 {[%emt 0:01:31]} 41. Qe5+ {[%emt 0:31:37]} Kf7 {[%emt 0:
30:59]} 42. Kh3 $1 {[%emt 0:00:05][%cal Yh4h5] h5! is the strong threat.} Qf1 {
[%emt 0:00:00]} 43. Kg3 {[%emt 0:00:00] Weighted Error Value: White=0.06 
(flawless) /Black=0.04 (flawless)} 1/2-1/2

[Event "44th Chess Olympiad Open 2022"]
[Site "Chennai"]
[Date "2022.08.08"]
[Round "10.6"]
[White "Zwardon, Vojtech"]
[Black "Santos Latasa, Jaime"]
[Result "0-1"]
[WhiteElo "2503"]
[BlackElo "2675"]
[Annotator "RC"]
[PlyCount "120"]
[EventDate "2022.??.??"]
[TimeControl "60"]

1. c4 {[%emt 0:00:02]} e6 {[%emt 0:00:08]} 2. Nf3 {[%emt 0:00:02]} d5 {[%emt 0:
00:00]} 3. e3 {[%emt 0:00:03]} Nf6 {[%emt 0:00:09]} 4. Nc3 {[%emt 0:00:03]} Bd6
{[%emt 0:00:17]} 5. b3 {[%emt 0:02:49]} O-O {[%emt 0:00:13]} 6. Bb2 {[%emt 0:
00:00]} Re8 {[%emt 0:00:02]} 7. Rc1 {[%emt 0:07:52]} a6 {[%emt 0:03:13]} 8. d4
{[%emt 0:07:14]} b6 {[%emt 0:00:34]} 9. c5 {[%emt 0:01:35]} bxc5 {[%emt 0:00:
00]} 10. dxc5 {[%emt 0:03:51]} Bf8 {[%emt 0:00:06]} 11. Be2 {[%emt 0:17:03]} a5
{[%emt 0:10:02]} 12. O-O {[%emt 0:02:04]} Ba6 {[%emt 0:01:04]} 13. Na4 {
[%emt 0:04:17]} c6 {[%emt 0:04:58]} 14. Qc2 {[%emt 0:11:03]} Nbd7 {[%emt 0:00:
00]} 15. Bxa6 {[%emt 0:00:05]} Rxa6 {[%emt 0:00:08]} 16. Ne5 {[%emt 0:00:38]}
Nxe5 {[%emt 0:01:14]} 17. Bxe5 {[%emt 0:00:02]} Nd7 {[%emt 0:00:32]} 18. Bb2 {
[%emt 0:00:04]} Ra8 {[%emt 0:01:00]} 19. e4 {[%emt 0:00:18]} Rb8 {[%emt 0:00:
00]} 20. Rfd1 {[%emt 0:08:57]} Be7 {[%emt 0:02:08]} 21. exd5 {[%emt 0:03:45]}
exd5 {[%emt 0:01:42]} 22. Re1 {[%emt 0:01:54]} Qc7 {[%emt 0:04:44]} 23. Qe2 {
[%emt 0:03:08]} h6 {[%emt 0:00:57]} 24. g3 {[%emt 0:06:07]} Qa7 {[%emt 0:12:20]
} 25. Bd4 {[%emt 0:01:38]} Bf6 {[%emt 0:02:00]} 26. Qxe8+ {[%emt 0:01:16]} Rxe8
{[%emt 0:01:03]} 27. Rxe8+ {[%emt 0:00:02]} Kh7 {[%emt 0:00:06]} 28. Bxf6 {
[%emt 0:02:16]} Nxf6 {[%emt 0:00:10]} 29. Ree1 {[%emt 0:02:47]} Qd7 {[%emt 0:
00:00]} 30. Nc3 {[%emt 0:03:18]} Qf5 {[%emt 0:00:36]} 31. Ne2 {[%emt 0:05:52]}
Ne4 {[%emt 0:03:32]} 32. Rf1 {[%emt 0:02:54]} Nd2 {[%emt 0:00:55]} 33. Rfd1 {
[%emt 0:01:04]} Nf3+ {[%emt 0:01:48]} 34. Kg2 {[%emt 0:00:01]} Qe4 {[%emt 0:00:
00]} 35. Ng1 {[%emt 0:02:10]} Ne5+ {[%emt 0:02:02]} 36. f3 {[%emt 0:00:22]}
Nxf3 {[%emt 0:00:55]} 37. Nxf3 {[%emt 0:00:07]} Qe2+ {[%emt 0:00:04]} 38. Kh3 {
[%emt 0:01:02]} Qxf3 {[%emt 0:00:17]} 39. Rf1 {[%emt 0:00:11]} Qh5+ {[%emt 0:
00:00]} 40. Kg2 {[%emt 0:00:02]} Qe2+ {[%emt 0:00:08]} 41. Rf2 {[%emt 0:31:36]}
Qe4+ {[%emt 0:30:12]} 42. Kg1 {[%emt 0:00:00]} f6 {[%emt 0:00:00]} 43. Rcc2 {
[%emt 0:00:00]} h5 {[%emt 0:00:00]} 44. h4 {[%emt 0:00:00]} Kg6 {[%emt 0:00:00]
} 45. Kh2 {[%emt 0:00:00]} Qb4 {[%emt 0:00:00]} 46. Rf4 {[%emt 0:00:00]} Qe1 {
[%emt 0:00:00]} 47. Ra4 {[%emt 0:00:00]} Qd1 {[%emt 0:00:00]} 48. Rg2 {[%emt 0:
00:00]} Qe1 {[%emt 0:00:00]} 49. a3 {[%emt 0:00:00]} Qd1 {[%emt 0:00:00]} 50.
Rxa5 {[%emt 0:00:00]} Qxb3 {[%emt 0:00:00]} 51. Ra7 {[%emt 0:00:00]} Qc3 {
[%emt 0:00:00]} 52. a4 {[%emt 0:00:00]} Qxc5 {[%emt 0:00:00]} 53. Ra8 {[%emt 0:
00:00]} d4 {[%emt 0:03:50]} 54. a5 {[%emt 0:00:00]} Qd6 {[%emt 0:03:28]} 55. a6
{[%emt 0:00:00]} c5 {[%emt 0:00:27]} 56. Rc8 {[%emt 0:03:53]} Qb6 {[%emt 0:00:
00]} 57. Rc2 {[%emt 0:04:21]} d3 {[%emt 0:00:36]} 58. Rd2 {[%emt 0:00:57]} Qa5
{[%emt 0:00:07]} 59. Rg2 {[%emt 0:00:22]} d2 {[%emt 0:00:51]} 60. Rg1 {[%emt 0:
00:00]} Qxa6 {[%emt 0:00:23]} 0-1

[Event "44th Chess Olympiad Open 2022"]
[Site "Chennai"]
[Date "2022.08.08"]
[Round "10.7"]
[White "Volokitin, Andrei"]
[Black "Berkes, Ferenc"]
[Result "1/2-1/2"]
[WhiteElo "2674"]
[BlackElo "2649"]
[Annotator "RC"]
[PlyCount "64"]
[EventDate "2022.??.??"]
[TimeControl "60"]

1. e4 {[%emt 0:00:03]} Nf6 {[%emt 0:00:09]} 2. e5 {[%emt 0:00:09]} Nd5 {
[%emt 0:00:05]} 3. d4 {[%emt 0:00:12]} d6 {[%emt 0:00:05]} 4. c4 {[%emt 0:00:
00]} Nb6 {[%emt 0:00:06]} 5. exd6 {[%emt 0:00:04]} exd6 {[%emt 0:00:05]} 6. Nc3
{[%emt 0:00:06]} Nc6 {[%emt 0:00:14]} 7. Nf3 {[%emt 0:00:18]} Be7 {[%emt 0:00:
00]} 8. h3 {[%emt 0:00:27]} O-O {[%emt 0:00:14]} 9. Bd3 {[%emt 0:00:39]} Re8 {
[%emt 0:00:17]} 10. O-O {[%emt 0:01:33]} Bf6 {[%emt 0:00:10]} 11. Be3 {[%emt 0:
00:00]} d5 {[%emt 0:04:53]} 12. c5 {[%emt 0:11:48]} Nc4 {[%emt 0:00:12]} 13.
Bxc4 {[%emt 0:02:27]} dxc4 {[%emt 0:01:10]} 14. Qa4 {[%emt 0:00:07]} Be6 {
[%emt 0:09:04]} 15. Rad1 {[%emt 0:00:10]} Ne7 {[%emt 0:10:21]} 16. Nd2 {
[%emt 0:12:30]} c6 {[%emt 0:06:18]} 17. Nxc4 {[%emt 0:06:47]} b5 {[%emt 0:00:
00]} 18. cxb6 {[%emt 0:00:08]} axb6 {[%emt 0:00:07]} 19. Qb4 {[%emt 0:00:03]}
Nd5 {[%emt 0:08:22]} 20. Nxd5 {[%emt 0:00:07]} Bxd5 {[%emt 0:00:11]} 21. a3 {
[%emt 0:03:25]} b5 {[%emt 0:01:50]} 22. Ne5 {[%emt 0:00:19]} Bxe5 {[%emt 0:00:
00]} 23. dxe5 {[%emt 0:00:04]} Rxe5 {[%emt 0:00:10]} 24. Rfe1 {[%emt 0:11:58]}
h6 {[%emt 0:04:20]} 25. Bf4 {[%emt 0:01:23]} Rxe1+ {[%emt 0:02:47]} 26. Rxe1 {
[%emt 0:00:04]} Qf6 {[%emt 0:04:06]} 27. Be5 {[%emt 0:00:16]} Qg6 {[%emt 0:00:
00]} 28. Qg4 {[%emt 0:00:07]} Qxg4 {[%emt 0:00:25]} 29. hxg4 {[%emt 0:00:02]}
Re8 {[%emt 0:00:47]} 30. f3 {[%emt 0:00:08]} f6 {[%emt 0:00:06]} 31. Bc3 {
[%emt 0:00:04]} Rxe1+ {[%emt 0:00:05]} 32. Bxe1 {[%emt 0:00:02]} Kf7 {[%emt 0:
00:00]} 1/2-1/2